[Event "Early-Titled-Tuesday-Blitz-October-24-2023"]
[Site "Chess.com"]
[Date "2023.10.24"]
[Round "4"]
[White "knightinshiningarmour16"]
[Black "marik_spb"]
[Result "1-0"]
[WhiteElo "2163"]
[BlackElo "2421"]
[TimeControl "180+1"]
[EndTime "8:40:40 PDT"]
[Termination "knightinshiningarmour16 won by checkmate"]

1. d4 {[%clk 0:03:00]} 1... Nf6 {[%clk 0:02:54.7]} 2. Nf3 {[%clk 0:02:59.6]}
2... g6 {[%clk 0:02:53.1]} 3. Bf4 {[%clk 0:02:58.5]} 3... Bg7 {[%clk 0:02:54]}
4. e3 {[%clk 0:02:58.5]} 4... O-O {[%clk 0:02:54.2]} 5. h3 {[%clk 0:02:58.9]}
5... b6 {[%clk 0:02:48.7]} 6. Be2 {[%clk 0:02:58.8]} 6... Bb7 {[%clk 0:02:48.7]}
7. O-O {[%clk 0:02:59.3]} 7... d6 {[%clk 0:02:42.8]} 8. c3 {[%clk 0:02:55.8]}
8... Nbd7 {[%clk 0:02:40]} 9. Nbd2 {[%clk 0:02:55.3]} 9... Re8 {[%clk
0:02:38.8]} 10. a4 {[%clk 0:02:49.8]} 10... e5 {[%clk 0:02:38.4]} 11. Bh2 {[%clk
0:02:47.7]} 11... c5 {[%clk 0:02:33.5]} 12. dxe5 {[%clk 0:02:44]} 12... dxe5
{[%clk 0:02:32.3]} 13. Nc4 {[%clk 0:02:39.7]} 13... Qc7 {[%clk 0:01:54.7]} 14.
Nd6 {[%clk 0:02:34.6]} 14... Red8 {[%clk 0:01:17.7]} 15. Nxb7 {[%clk 0:02:30.6]}
15... Qxb7 {[%clk 0:01:18.6]} 16. Qb3 {[%clk 0:02:22.9]} 16... e4 {[%clk
0:01:06.5]} 17. Ng5 {[%clk 0:02:16.3]} 17... Nf8 {[%clk 0:00:56.9]} 18. Bc4
{[%clk 0:02:08.7]} 18... Rd7 {[%clk 0:00:40.5]} 19. Bxf7+ {[%clk 0:02:01.8]}
19... Rxf7 {[%clk 0:00:38.6]} 20. Nxf7 {[%clk 0:02:00.7]} 20... Qxf7 {[%clk
0:00:38.7]} 21. Qxf7+ {[%clk 0:01:53.6]} 21... Kxf7 {[%clk 0:00:39.6]} 22. a5
{[%clk 0:01:53.5]} 22... Rd8 {[%clk 0:00:36.2]} 23. axb6 {[%clk 0:01:53.1]}
23... axb6 {[%clk 0:00:37.1]} 24. Bc7 {[%clk 0:01:52.5]} 24... Rd2 {[%clk
0:00:35.6]} 25. Bxb6 {[%clk 0:01:52.2]} 25... N8d7 {[%clk 0:00:33.8]} 26. Ra7
{[%clk 0:01:49.7]} 26... Kg8 {[%clk 0:00:21.5]} 27. Ra8+ {[%clk 0:01:45]} 27...
Bf8 {[%clk 0:00:21.3]} 28. Bc7 {[%clk 0:01:42.9]} 28... Rxb2 {[%clk 0:00:20.7]}
29. Bd6 {[%clk 0:01:40.2]} 29... Kf7 {[%clk 0:00:21.2]} 30. Bxf8 {[%clk
0:01:39.7]} 30... Nxf8 {[%clk 0:00:22.1]} 31. Rd1 {[%clk 0:01:32.4]} 31... N8d7
{[%clk 0:00:19.3]} 32. Ra7 {[%clk 0:01:31.3]} 32... Ke6 {[%clk 0:00:19.8]} 33.
Ra6+ {[%clk 0:01:30.6]} 33... Rb6 {[%clk 0:00:19.7]} 34. Ra8 {[%clk 0:01:24.2]}
34... Rd6 {[%clk 0:00:18.3]} 35. Rb1 {[%clk 0:01:21.9]} 35... Rd3 {[%clk
0:00:18.7]} 36. c4 {[%clk 0:01:15.3]} 36... Rc3 {[%clk 0:00:18]} 37. Ra6+ {[%clk
0:01:14.7]} 37... Kf5 {[%clk 0:00:17.4]} 38. g4+ {[%clk 0:01:13.9]} 38... Kg5
{[%clk 0:00:17.3]} 39. Rd1 {[%clk 0:01:04.2]} 39... Ne5 {[%clk 0:00:10.2]} 40.
Kg2 {[%clk 0:00:54.8]} 40... Rxc4 {[%clk 0:00:09.6]} 41. Rdd6 {[%clk 0:00:54.1]}
41... Nfd7 {[%clk 0:00:07.1]} 42. Kg3 {[%clk 0:00:50.7]} 42... Kh6 {[%clk
0:00:04]} 43. Ra7 {[%clk 0:00:48.4]} 43... Rc1 {[%clk 0:00:03.8]} 44. Rdxd7
{[%clk 0:00:46.9]} 44... Rg1+ {[%clk 0:00:03.6]} 45. Kf4 {[%clk 0:00:46.8]}
45... Nxd7 {[%clk 0:00:04]} 46. Rxd7 {[%clk 0:00:47]} 46... Rf1 {[%clk
0:00:04.9]} 47. Kg3 {[%clk 0:00:47]} 47... Rg1+ {[%clk 0:00:04.9]} 48. Kf4
{[%clk 0:00:47.2]} 48... c4 {[%clk 0:00:04.7]} 49. Rc7 {[%clk 0:00:46.9]} 49...
g5+ {[%clk 0:00:04.7]} 50. Kxe4 {[%clk 0:00:46.9]} 50... Rh1 {[%clk 0:00:04.4]}
51. Rxc4 {[%clk 0:00:47]} 51... Rxh3 {[%clk 0:00:05]} 52. Rc6+ {[%clk
0:00:47.2]} 52... Kg7 {[%clk 0:00:05.5]} 53. f4 {[%clk 0:00:47]} 53... Rg3
{[%clk 0:00:05.2]} 54. Kf5 {[%clk 0:00:46.6]} 54... gxf4 {[%clk 0:00:05.7]} 55.
exf4 {[%clk 0:00:47.5]} 55... Rd3 {[%clk 0:00:05]} 56. Kg5 {[%clk 0:00:47.2]}
56... Rd7 {[%clk 0:00:04.4]} 57. f5 {[%clk 0:00:47.3]} 57... Ra7 {[%clk
0:00:04.9]} 58. Kh5 {[%clk 0:00:47.3]} 58... Rf7 {[%clk 0:00:03.8]} 59. Re6
{[%clk 0:00:46.2]} 59... Kg8 {[%clk 0:00:02.4]} 60. Kh6 {[%clk 0:00:46.1]} 60...
Rf8 {[%clk 0:00:02.5]} 61. Re5 {[%clk 0:00:45]} 61... Rf6+ {[%clk 0:00:02.9]}
62. Kg5 {[%clk 0:00:43.8]} 62... Rf7 {[%clk 0:00:03.8]} 63. f6 {[%clk
0:00:42.6]} 63... Ra7 {[%clk 0:00:03.7]} 64. Kf5 {[%clk 0:00:42.7]} 64... Ra1
{[%clk 0:00:03.6]} 65. g5 {[%clk 0:00:42.8]} 65... Kf8 {[%clk 0:00:02.7]} 66.
Rc5 {[%clk 0:00:39.5]} 66... Rf1+ {[%clk 0:00:02.8]} 67. Ke6 {[%clk 0:00:39.7]}
67... Re1+ {[%clk 0:00:03.4]} 68. Re5 {[%clk 0:00:39.8]} 68... Rg1 {[%clk
0:00:03.4]} 69. Rd5 {[%clk 0:00:27.8]} 69... Re1+ {[%clk 0:00:03.8]} 70. Kf5
{[%clk 0:00:27.6]} 70... Rf1+ {[%clk 0:00:04.1]} 71. Kg4 {[%clk 0:00:27.5]}
71... Rg1+ {[%clk 0:00:04.6]} 72. Kh5 {[%clk 0:00:26.7]} 72... Rh1+ {[%clk
0:00:05.1]} 73. Kg4 {[%clk 0:00:27]} 73... Rg1+ {[%clk 0:00:06]} 74. Kf3 {[%clk
0:00:27.3]} 74... Rf1+ {[%clk 0:00:05.6]} 75. Kg2 {[%clk 0:00:27.4]} 75... Rf4
{[%clk 0:00:06]} 76. Kg3 {[%clk 0:00:27.5]} 76... Ra4 {[%clk 0:00:06.1]} 77. Rd7
{[%clk 0:00:26.9]} 77... Kg8 {[%clk 0:00:01.6]} 78. Kh3 {[%clk 0:00:23]} 78...
Rb4 {[%clk 0:00:01.4]} 79. Kg3 {[%clk 0:00:22.2]} 79... Ra4 {[%clk 0:00:01.3]}
80. Rd8+ {[%clk 0:00:21.5]} 80... Kf7 {[%clk 0:00:01.5]} 81. Rh8 {[%clk
0:00:20.5]} 81... Kg6 {[%clk 0:00:01.6]} 82. Rg8+ {[%clk 0:00:20.5]} 82... Kh5
{[%clk 0:00:02]} 83. Rg7 {[%clk 0:00:20.6]} 83... h6 {[%clk 0:00:01.8]} 84. g6
{[%clk 0:00:18.4]} 84... Ra3+ {[%clk 0:00:01.2]} 85. Kf4 {[%clk 0:00:18.6]}
85... Ra1 {[%clk 0:00:01.7]} 86. f7 {[%clk 0:00:18.5]} 86... Rf1+ {[%clk
0:00:02.6]} 87. Ke5 {[%clk 0:00:18.6]} 87... Kg4 {[%clk 0:00:02]} 88. Rg8 {[%clk
0:00:18]} 88... h5 {[%clk 0:00:02.9]} 89. f8=Q {[%clk 0:00:17.7]} 89... Rxf8
{[%clk 0:00:03.7]} 90. Rxf8 {[%clk 0:00:18]} 90... Kg5 {[%clk 0:00:04.6]} 91. g7
{[%clk 0:00:18.2]} 91... h4 {[%clk 0:00:02.2]} 92. g8=Q+ {[%clk 0:00:19]} 92...
Kh6 {[%clk 0:00:02.7]} 93. Rf7 {[%clk 0:00:19.3]} 93... h3 {[%clk 0:00:02.5]}
94. Rh7# {[%clk 0:00:20.2]} 1-0

[Event "Early-Titled-Tuesday-Blitz-October-24-2023"]
[Site "Chess.com"]
[Date "2023.10.24"]
[Round "4"]
[White "JuniorJumper"]
[Black "abc_xyz4744"]
[Result "1/2-1/2"]
[WhiteElo "2612"]
[BlackElo "2397"]
[TimeControl "180+1"]
[EndTime "8:41:40 PDT"]
[Termination "Game drawn by agreement"]

1. d4 {[%clk 0:02:59.3]} 1... d5 {[%clk 0:02:55.1]} 2. Bf4 {[%clk 0:02:59.2]}
2... Nf6 {[%clk 0:02:54.7]} 3. e3 {[%clk 0:02:59.6]} 3... Bf5 {[%clk 0:02:54.9]}
4. Nf3 {[%clk 0:02:59.7]} 4... e6 {[%clk 0:02:55.5]} 5. Nbd2 {[%clk 0:03:00.2]}
5... Bd6 {[%clk 0:02:48.1]} 6. Bg3 {[%clk 0:02:48.4]} 6... O-O {[%clk
0:02:47.6]} 7. c4 {[%clk 0:02:47.1]} 7... c6 {[%clk 0:02:48]} 8. Be2 {[%clk
0:02:46.9]} 8... h6 {[%clk 0:02:44.6]} 9. Rc1 {[%clk 0:02:45.9]} 9... Ne4 {[%clk
0:02:43.1]} 10. Bxd6 {[%clk 0:02:45.2]} 10... Qxd6 {[%clk 0:02:42.8]} 11. Nxe4
{[%clk 0:02:45.6]} 11... Bxe4 {[%clk 0:02:42.8]} 12. Bd3 {[%clk 0:02:39.3]}
12... f5 {[%clk 0:02:30.8]} 13. Ne5 {[%clk 0:02:33.3]} 13... Nd7 {[%clk
0:02:12.2]} 14. c5 {[%clk 0:02:32.7]} 14... Qc7 {[%clk 0:02:12.4]} 15. Nxd7
{[%clk 0:01:56.5]} 15... Qxd7 {[%clk 0:02:11.7]} 16. f3 {[%clk 0:01:51.2]} 16...
Bxd3 {[%clk 0:02:11.5]} 17. Qxd3 {[%clk 0:01:52]} 17... Rae8 {[%clk 0:02:02.3]}
18. f4 {[%clk 0:01:51.7]} 18... b6 {[%clk 0:01:55.7]} 19. O-O {[%clk 0:01:50]}
19... Rb8 {[%clk 0:01:53.7]} 20. Rf2 {[%clk 0:01:43.4]} 20... b5 {[%clk
0:01:48.4]} 21. Qc3 {[%clk 0:01:29.8]} 21... b4 {[%clk 0:01:45.6]} 22. Qb3
{[%clk 0:01:26.7]} 22... a5 {[%clk 0:01:45.9]} 23. Qa4 {[%clk 0:01:26.7]} 23...
Ra8 {[%clk 0:01:46.1]} 24. Qb3 {[%clk 0:00:41.8]} 24... Qb7 {[%clk 0:01:38.2]}
25. a4 {[%clk 0:00:41.2]} 25... Qa6 {[%clk 0:01:32.9]} 26. Qd1 {[%clk
0:00:41.5]} 26... b3 {[%clk 0:01:06]} 27. Qxb3 {[%clk 0:00:40.6]} 27... Rab8
{[%clk 0:01:06]} 28. Qc3 {[%clk 0:00:36.2]} 28... Rb4 {[%clk 0:01:05.8]} 29. b3
{[%clk 0:00:36.8]} 29... Rfb8 {[%clk 0:01:04.9]} 30. Rb2 {[%clk 0:00:35.9]}
30... Qb7 {[%clk 0:00:57.3]} 31. Rcb1 {[%clk 0:00:36.4]} 31... Qe7 {[%clk
0:00:55.3]} 32. Qe1 {[%clk 0:00:27.8]} 32... Kh7 {[%clk 0:00:51.8]} 33. h3
{[%clk 0:00:28]} 33... Qf6 {[%clk 0:00:48]} 34. Kh2 {[%clk 0:00:27]} 34... Qg6
{[%clk 0:00:32.6]} 35. Qe2 {[%clk 0:00:26.6]} 35... Qf6 {[%clk 0:00:32.3]} 36.
Qa6 {[%clk 0:00:26.5]} 36... g5 {[%clk 0:00:20.6]} 37. Qxc6 {[%clk 0:00:22.8]}
37... gxf4 {[%clk 0:00:20.6]} 38. Qc7+ {[%clk 0:00:23.5]} 38... Qg7 {[%clk
0:00:16.3]} 39. Qxf4 {[%clk 0:00:24.1]} 39... Rg8 {[%clk 0:00:16.1]} 40. Rg1
{[%clk 0:00:17.8]} 40... Qf6 {[%clk 0:00:14.8]} 41. g3 {[%clk 0:00:17.8]} 41...
Rgb8 {[%clk 0:00:14.3]} 42. Rgb1 {[%clk 0:00:17.4]} 42... e5 {[%clk 0:00:13.7]}
43. Qxe5 {[%clk 0:00:05.7]} 43... Qxe5 {[%clk 0:00:14.2]} 44. dxe5 {[%clk
0:00:06.6]} 44... Re4 {[%clk 0:00:14.9]} 45. c6 {[%clk 0:00:06.9]} 45... Rxe5
{[%clk 0:00:14.1]} 46. c7 {[%clk 0:00:07.3]} 46... Rc8 {[%clk 0:00:14.3]} 47.
Rc1 {[%clk 0:00:08]} 47... Rxe3 {[%clk 0:00:14.6]} 48. b4 {[%clk 0:00:08.3]}
48... axb4 {[%clk 0:00:13.4]} 49. Rxb4 {[%clk 0:00:08.9]} 49... Re4 {[%clk
0:00:12.5]} 50. Rb8 {[%clk 0:00:06.4]} 50... Ree8 {[%clk 0:00:12.7]} 51. Rxc8
{[%clk 0:00:06.4]} 51... Rxc8 {[%clk 0:00:13.6]} 52. Kg2 {[%clk 0:00:07.2]}
52... Kg6 {[%clk 0:00:14.1]} 53. Kf3 {[%clk 0:00:08]} 53... Kf6 {[%clk
0:00:14.4]} 54. Kf4 {[%clk 0:00:08.8]} 54... d4 {[%clk 0:00:14.3]} 55. a5 {[%clk
0:00:09.4]} 55... Ke6 {[%clk 0:00:14.6]} 56. a6 {[%clk 0:00:09.7]} 56... Kd7
{[%clk 0:00:14.9]} 57. Ke5 {[%clk 0:00:10.2]} 57... d3 {[%clk 0:00:14.9]} 58.
Kd4 {[%clk 0:00:10.2]} 58... d2 {[%clk 0:00:15.2]} 59. Rd1 {[%clk 0:00:10.6]}
59... Rxc7 {[%clk 0:00:16.1]} 60. Rxd2 {[%clk 0:00:11.2]} 60... Ra7 {[%clk
0:00:16.9]} 61. Ke5+ {[%clk 0:00:11.5]} 61... Ke7 {[%clk 0:00:17.5]} 62. Kxf5
{[%clk 0:00:12.1]} 62... Rxa6 {[%clk 0:00:17.7]} 63. Kg4 {[%clk 0:00:12.4]}
63... Kf6 {[%clk 0:00:18]} 64. Rd4 {[%clk 0:00:09.2]} 64... Kg6 {[%clk
0:00:18.5]} 65. Rb4 {[%clk 0:00:09.6]} 65... Rc6 {[%clk 0:00:18.3]} 66. Rf4
{[%clk 0:00:09.1]} 66... Ra6 {[%clk 0:00:18.4]} 67. h4 {[%clk 0:00:09.1]} 67...
h5+ {[%clk 0:00:17.6]} 68. Kh3 {[%clk 0:00:09.5]} 68... Rb6 {[%clk 0:00:18]} 69.
Rc4 {[%clk 0:00:09.8]} 69... Ra6 {[%clk 0:00:17.7]} 70. Rb4 {[%clk 0:00:10.5]}
70... Rc6 {[%clk 0:00:17.6]} 71. Ra4 {[%clk 0:00:10.9]} 71... Rb6 {[%clk
0:00:17.9]} 72. Ra5 {[%clk 0:00:11.1]} 72... Rc6 {[%clk 0:00:18.4]} 73. Rg5+
{[%clk 0:00:11.4]} 73... Kh6 {[%clk 0:00:19]} 74. Re5 {[%clk 0:00:11.7]} 74...
Rb6 {[%clk 0:00:19.2]} 75. Kg2 {[%clk 0:00:12.3]} 75... Ra6 {[%clk 0:00:18.2]}
76. Kf3 {[%clk 0:00:13]} 76... Kg6 {[%clk 0:00:18.8]} 77. Kf4 {[%clk 0:00:13.6]}
77... Ra4+ {[%clk 0:00:18.9]} 78. Re4 {[%clk 0:00:14.1]} 78... Ra6 {[%clk
0:00:19.1]} 79. Rb4 {[%clk 0:00:14.2]} 79... Rc6 {[%clk 0:00:19.2]} 80. Ke5
{[%clk 0:00:11]} 80... Rc5+ {[%clk 0:00:18.3]} 81. Ke4 {[%clk 0:00:09.8]} 81...
Rc6 {[%clk 0:00:18.5]} 82. Ke5 {[%clk 0:00:10]} 82... Ra6 {[%clk 0:00:16.3]} 83.
Rd4 {[%clk 0:00:06.5]} 83... Ra3 {[%clk 0:00:13.2]} 84. Rd6+ {[%clk 0:00:05.4]}
84... Kg7 {[%clk 0:00:12.6]} 85. Kf4 {[%clk 0:00:06.1]} 85... Ra5 {[%clk
0:00:12.9]} 86. Re6 {[%clk 0:00:06.5]} 86... Ra4+ {[%clk 0:00:11.2]} 87. Kg5
{[%clk 0:00:05.4]} 87... Rg4+ {[%clk 0:00:11.2]} 88. Kxh5 {[%clk 0:00:04.6]}
88... Rxg3 {[%clk 0:00:12.1]} 89. Ra6 {[%clk 0:00:05.1]} 89... Kh8 {[%clk
0:00:12.3]} 90. Ra7 {[%clk 0:00:05.4]} 90... Rg8 {[%clk 0:00:12.1]} 91. Kh6
{[%clk 0:00:05.3]} 91... Rc8 {[%clk 0:00:12.6]} 92. Ra6 {[%clk 0:00:05.4]} 92...
Rb8 {[%clk 0:00:12.7]} 93. Rg6 {[%clk 0:00:05.9]} 93... Ra8 {[%clk 0:00:11.5]}
94. h5 {[%clk 0:00:06.5]} 94... Ra7 {[%clk 0:00:11.2]} 95. Rb6 {[%clk
0:00:06.3]} 95... Rh7+ {[%clk 0:00:11.3]} 96. Kg6 {[%clk 0:00:06.4]} 96... Rg7+
{[%clk 0:00:12.2]} 97. Kh6 {[%clk 0:00:06.9]} 97... Rg8 {[%clk 0:00:12.9]} 98.
Rb7 {[%clk 0:00:06.8]} 98... Re8 {[%clk 0:00:13.2]} 99. Rh7+ {[%clk 0:00:07.2]}
99... Kg8 {[%clk 0:00:13.9]} 100. Rg7+ {[%clk 0:00:07.8]} 100... Kh8 {[%clk
0:00:14.5]} 101. Rf7 {[%clk 0:00:08.1]} 101... Kg8 {[%clk 0:00:14.7]} 102. Rf6
{[%clk 0:00:07.3]} 102... Rf8 {[%clk 0:00:14.5]} 103. Re6 {[%clk 0:00:07]}
103... Rd8 {[%clk 0:00:14.4]} 104. Kg6 {[%clk 0:00:07.3]} 104... Rc8 {[%clk
0:00:14]} 105. h6 {[%clk 0:00:07.3]} 105... Rb8 {[%clk 0:00:14.3]} 106. Rc6
{[%clk 0:00:07.6]} 106... Ra8 {[%clk 0:00:14.2]} 107. Re6 {[%clk 0:00:08.1]}
107... Rb8 {[%clk 0:00:14]} 108. Ra6 {[%clk 0:00:08.8]} 108... Rc8 {[%clk
0:00:14.3]} 109. Rb6 {[%clk 0:00:09.4]} 109... Rd8 {[%clk 0:00:14.6]} 110. Rb7
{[%clk 0:00:09.7]} 110... Rc8 {[%clk 0:00:14.7]} 111. Rb6 {[%clk 0:00:09.9]}
111... Kh8 {[%clk 0:00:15]} 112. Re6 {[%clk 0:00:10.2]} 112... Kg8 {[%clk
0:00:15.4]} 113. Re7 {[%clk 0:00:10.4]} 113... Rc6+ {[%clk 0:00:14.8]} 114. Kg5
{[%clk 0:00:10.9]} 114... Rc5+ {[%clk 0:00:15.2]} 115. Kg4 {[%clk 0:00:11.2]}
115... Rc4+ {[%clk 0:00:15.5]} 116. Kf5 {[%clk 0:00:11.7]} 116... Rc5+ {[%clk
0:00:15.8]} 117. Kg6 {[%clk 0:00:12.2]} 117... Rc6+ {[%clk 0:00:16.2]} 118. Kh5
{[%clk 0:00:12.8]} 118... Rc5+ {[%clk 0:00:16.7]} 119. Kg4 {[%clk 0:00:13.4]}
119... Rc4+ {[%clk 0:00:17.3]} 120. Kf5 {[%clk 0:00:13.5]} 120... Rc5+ {[%clk
0:00:17.6]} 121. Kf6 {[%clk 0:00:14]} 121... Rc6+ {[%clk 0:00:18.1]} 122. Kg5
{[%clk 0:00:14.5]} 122... Rc5+ {[%clk 0:00:18.8]} 1/2-1/2

[Event "Early-Titled-Tuesday-Blitz-October-24-2023"]
[Site "Chess.com"]
[Date "2023.10.24"]
[Round "5"]
[White "marik_spb"]
[Black "parintele_chess"]
[Result "1-0"]
[WhiteElo "2426"]
[BlackElo "2262"]
[TimeControl "180+1"]
[EndTime "8:49:10 PDT"]
[Termination "marik_spb won by resignation"]

1. e4 {[%clk 0:03:00.4]} 1... e5 {[%clk 0:02:30.9]} 2. Nf3 {[%clk 0:02:56.9]}
2... Nc6 {[%clk 0:02:31.5]} 3. Bc4 {[%clk 0:02:55.2]} 3... Nf6 {[%clk
0:02:31.6]} 4. d4 {[%clk 0:02:53.1]} 4... exd4 {[%clk 0:02:30.9]} 5. O-O {[%clk
0:02:53.5]} 5... Nxe4 {[%clk 0:02:30.3]} 6. Re1 {[%clk 0:02:52.3]} 6... d5
{[%clk 0:02:30.9]} 7. Bxd5 {[%clk 0:02:53]} 7... Qxd5 {[%clk 0:02:31.3]} 8. Nc3
{[%clk 0:02:53.9]} 8... Qh5 {[%clk 0:02:31.5]} 9. Nxe4 {[%clk 0:02:54.8]} 9...
Be6 {[%clk 0:02:31.6]} 10. Nxd4 {[%clk 0:02:49.4]} 10... Qxd1 {[%clk 0:02:26.6]}
11. Rxd1 {[%clk 0:02:50.3]} 11... Nxd4 {[%clk 0:02:25.1]} 12. Rxd4 {[%clk
0:02:50.9]} 12... Bc5 {[%clk 0:02:25.7]} 13. Nxc5 {[%clk 0:02:50.4]} 1-0

[Event "Early-Titled-Tuesday-Blitz-October-24-2023"]
[Site "Chess.com"]
[Date "2023.10.24"]
[Round "5"]
[White "UmarovSabir"]
[Black "Masterbeaterr"]
[Result "1-0"]
[WhiteElo "2326"]
[BlackElo "2430"]
[TimeControl "180+1"]
[EndTime "8:50:44 PDT"]
[Termination "UmarovSabir won by resignation"]

1. e4 {[%clk 0:03:00.2]} 1... e5 {[%clk 0:02:59.2]} 2. Nf3 {[%clk 0:02:59.5]}
2... Nc6 {[%clk 0:02:59.6]} 3. Bc4 {[%clk 0:02:58.1]} 3... Nf6 {[%clk
0:02:58.8]} 4. d3 {[%clk 0:02:56.8]} 4... h6 {[%clk 0:02:58.3]} 5. a3 {[%clk
0:02:55.5]} 5... d6 {[%clk 0:02:59.2]} 6. Nc3 {[%clk 0:02:54.6]} 6... g6 {[%clk
0:02:57.7]} 7. h3 {[%clk 0:02:53.5]} 7... Bg7 {[%clk 0:02:57.7]} 8. Be3 {[%clk
0:02:53.5]} 8... O-O {[%clk 0:02:57.8]} 9. Qd2 {[%clk 0:02:53.6]} 9... Kh7
{[%clk 0:02:58.2]} 10. g4 {[%clk 0:02:52]} 10... Nd7 {[%clk 0:02:48.2]} 11. g5
{[%clk 0:02:32.1]} 11... h5 {[%clk 0:02:47.7]} 12. Nd5 {[%clk 0:02:30.8]} 12...
Ne7 {[%clk 0:02:40.2]} 13. Nf6+ {[%clk 0:02:13.9]} 13... Nxf6 {[%clk 0:02:38.6]}
14. gxf6 {[%clk 0:02:13.9]} 14... Bxf6 {[%clk 0:02:39.5]} 15. Ng5+ {[%clk
0:02:04.9]} 15... Kg7 {[%clk 0:02:36.6]} 16. Rg1 {[%clk 0:02:01.6]} 16... d5
{[%clk 0:02:36.1]} 17. exd5 {[%clk 0:01:50]} 17... Nxd5 {[%clk 0:02:37]} 18.
Bxd5 {[%clk 0:01:33.5]} 18... Qxd5 {[%clk 0:02:37.9]} 19. Ne4 {[%clk 0:01:33.8]}
19... Bf5 {[%clk 0:02:30]} 20. Bh6+ {[%clk 0:01:30.5]} 1-0

[Event "Early-Titled-Tuesday-Blitz-October-24-2023"]
[Site "Chess.com"]
[Date "2023.10.24"]
[Round "5"]
[White "SlavenPastar"]
[Black "Alex_Sahakyan2006"]
[Result "0-1"]
[WhiteElo "2603"]
[BlackElo "2746"]
[TimeControl "180+1"]
[EndTime "8:51:30 PDT"]
[Termination "Alex_Sahakyan2006 won by checkmate"]

1. b3 {[%clk 0:03:00.9]} 1... e5 {[%clk 0:02:55.8]} 2. Bb2 {[%clk 0:03:01.2]}
2... e4 {[%clk 0:02:56.7]} 3. d3 {[%clk 0:03:00.6]} 3... exd3 {[%clk 0:02:56.8]}
4. cxd3 {[%clk 0:02:58.3]} 4... d5 {[%clk 0:02:57.2]} 5. g3 {[%clk 0:02:58.2]}
5... c6 {[%clk 0:02:55.3]} 6. Nf3 {[%clk 0:02:58.2]} 6... Nf6 {[%clk 0:02:54.5]}
7. Bg2 {[%clk 0:02:58.8]} 7... Bb4+ {[%clk 0:02:52.3]} 8. Nbd2 {[%clk
0:02:58.3]} 8... O-O {[%clk 0:02:52.8]} 9. O-O {[%clk 0:02:58.3]} 9... Re8
{[%clk 0:02:53.5]} 10. a3 {[%clk 0:02:56]} 10... Bf8 {[%clk 0:02:51.1]} 11. b4
{[%clk 0:02:55.5]} 11... a5 {[%clk 0:02:50.8]} 12. Rb1 {[%clk 0:02:44.6]} 12...
axb4 {[%clk 0:02:50.7]} 13. axb4 {[%clk 0:02:45.5]} 13... Na6 {[%clk 0:02:51.5]}
14. b5 {[%clk 0:02:44.3]} 14... cxb5 {[%clk 0:02:51.8]} 15. Bxf6 {[%clk
0:02:42.2]} 15... Qxf6 {[%clk 0:02:52.7]} 16. Rxb5 {[%clk 0:02:41.3]} 16... Nc7
{[%clk 0:02:53.4]} 17. Rb1 {[%clk 0:02:37.9]} 17... Bc5 {[%clk 0:02:50.5]} 18.
e3 {[%clk 0:02:36.4]} 18... d4 {[%clk 0:02:30.7]} 19. Nb3 {[%clk 0:02:29.6]}
19... dxe3 {[%clk 0:02:30.6]} 20. Nxc5 {[%clk 0:02:29.4]} 20... e2 {[%clk
0:02:30.9]} 21. Qc2 {[%clk 0:02:20.1]} 21... exf1=Q+ {[%clk 0:02:30.3]} 22. Rxf1
{[%clk 0:02:20.1]} 22... Ra1 {[%clk 0:02:29.7]} 23. Ne4 {[%clk 0:01:38.3]} 23...
Rxf1+ {[%clk 0:02:29.2]} 24. Bxf1 {[%clk 0:01:38.2]} 24... Qxf3 {[%clk
0:02:29.1]} 25. Qxc7 {[%clk 0:01:37.1]} 25... Qd1 {[%clk 0:02:23.5]} 26. Nd6
{[%clk 0:01:08.9]} 26... Qxf1+ {[%clk 0:02:22.8]} 27. Kxf1 {[%clk 0:01:05.7]}
27... Bh3+ {[%clk 0:02:22.7]} 28. Kg1 {[%clk 0:01:05.7]} 28... Re1# {[%clk
0:02:23.6]} 0-1

[Event "Early-Titled-Tuesday-Blitz-October-24-2023"]
[Site "Chess.com"]
[Date "2023.10.24"]
[Round "5"]
[White "Payyappat"]
[Black "Daffidollchess2"]
[Result "1-0"]
[WhiteElo "2513"]
[BlackElo "2678"]
[TimeControl "180+1"]
[EndTime "8:51:45 PDT"]
[Termination "Payyappat won by resignation"]

1. e4 {[%clk 0:03:00.9]} 1... c5 {[%clk 0:02:59.6]} 2. Nf3 {[%clk 0:03:01.1]}
2... Nc6 {[%clk 0:02:59.9]} 3. d4 {[%clk 0:03:01.8]} 3... cxd4 {[%clk
0:03:00.8]} 4. Nxd4 {[%clk 0:03:02.7]} 4... Qc7 {[%clk 0:03:01.4]} 5. Nc3 {[%clk
0:03:02]} 5... e6 {[%clk 0:03:01.8]} 6. Be3 {[%clk 0:03:01.3]} 6... a6 {[%clk
0:03:01.4]} 7. Be2 {[%clk 0:03:00.7]} 7... b5 {[%clk 0:03:01.1]} 8. O-O {[%clk
0:02:58.4]} 8... Bb7 {[%clk 0:02:59.1]} 9. a3 {[%clk 0:02:56.2]} 9... Nf6 {[%clk
0:02:58.3]} 10. f4 {[%clk 0:02:47.8]} 10... d6 {[%clk 0:02:58.2]} 11. Bf3 {[%clk
0:02:45.9]} 11... Be7 {[%clk 0:02:57.5]} 12. g4 {[%clk 0:02:43.8]} 12... Nxd4
{[%clk 0:02:57.4]} 13. Bxd4 {[%clk 0:02:41.1]} 13... e5 {[%clk 0:02:57.9]} 14.
Be3 {[%clk 0:02:36.6]} 14... exf4 {[%clk 0:02:58.3]} 15. Bxf4 {[%clk 0:02:37.5]}
15... Nd7 {[%clk 0:02:56.1]} 16. Kh1 {[%clk 0:02:30]} 16... Ne5 {[%clk
0:02:55.4]} 17. Bg2 {[%clk 0:02:29.3]} 17... O-O {[%clk 0:02:49.6]} 18. Ne2
{[%clk 0:02:22.3]} 18... Nxg4 {[%clk 0:02:45.2]} 19. Nd4 {[%clk 0:02:19.6]}
19... Ne5 {[%clk 0:02:45.4]} 20. Nf5 {[%clk 0:02:10]} 20... Rfd8 {[%clk
0:02:39.6]} 21. Qh5 {[%clk 0:02:04.1]} 21... Bf8 {[%clk 0:02:40]} 22. Rae1
{[%clk 0:01:57]} 22... Bc8 {[%clk 0:02:40]} 23. Re3 {[%clk 0:01:54]} 23... g6
{[%clk 0:02:14.6]} 24. Nh6+ {[%clk 0:01:52.9]} 24... Kg7 {[%clk 0:01:49.8]} 25.
Qh4 {[%clk 0:01:46.2]} 25... Be7 {[%clk 0:01:45.3]} 26. Bxe5+ {[%clk 0:01:40.4]}
1-0